[Event "2nd Cambridge Open 2024"]
[Site "Cambridge"]
[Date "2024.02.21"]
[Round "4.30"]
[White "Hebden, Mark L"]
[Black "Iyengar, Ilya"]
[Result "1-0"]
[ECO "A45"]
[WhiteElo "2416"]
[BlackElo "1972"]
[Annotator "TA"]
[PlyCount "53"]
[EventDate "2024.02.18"]
[EventType "swiss"]
[EventCountry "ENG"]
[SourceTitle "playchess.com"]
[Source "ChessBase"]
[SourceQuality "1"]
[TimeControl "5400+30"]

{[%evp 13,53,-7,0,0,-3,-6,0,-3,19,25,48,44,202,213,382,388,566,614,619,612,727,717,847,334,300,266,270,274,314,327,549,545,631,593,640,629,1433,1437,29962,29965,5297,2804]} 1. d4 {[%emt 0:00:03]} Nf6 {[%emt 0:17:15]} 2. Bg5 {[%emt 0:01:06]} Ne4 {[%emt 0:01:00]} 3. Bf4 {[%emt 0:00:29]} c5 {[%emt 0:00:27]} 4. d5 {[%emt 0:03:27]} Qb6 {[%emt 0:02:07]} 5. Nd2 {[%emt 0:01:29]} Nxd2 {[%emt 0:03:20]} 6. Bxd2 {[%emt 0:00:30]} Qxb2 {[%emt 0:00:18]} 7. e4 {[%emt 0:00:09]} g6 {[%emt 0:04:34]} 8. Rb1 {[%emt 0:02:02]} Qe5 {[%emt 0:06:15]} 9. Bd3 {[%emt 0:00:45]} Bg7 {[%emt 0:01:00][%cal Oc5c4]} 10. c4 {[%emt 0:02:28] The position is equal.} O-O {[%emt 0:02:50]} 11. h4 {[%emt 0:00:45][%mdl 1024] White has compensation.} Na6 {[%emt 0:20:44]} 12. a3 $1 {[%emt 0:00:30] Dodges Nb4} f5 $2 {[%emt 0:09:01]} (12... d6 $14) 13. Nf3 $18 {[%emt 0:00:39]} Qc7 {[%emt 0:00:11]} (13... Qd6 14. h5 b5) 14. h5 {[%emt 0:00:33]} e5 {[%emt 0:10:57]} (14... g5 {was worth a try.} 15. h6 (15. Nxg5 h6 $18) (15. Bxg5 fxe4 16. Bxe4 h6 $18) 15... Bf6 16. exf5 (16. Nxg5 b6 $18) 16... g4) 15. hxg6 {[%emt 0:00:36]} hxg6 {[%emt 0:01:20]} 16. Nh4 {[%emt 0:00:23][%csl LRf5,LRg6]} f4 {[%emt 0:01:43]} 17. Nxg6 {[%emt 0:00:37]} Rf6 {[%emt 0:00:20]} 18. Ne7+ $2 {[%emt 0:02:08]} (18. Qh5 d6 19. g3) 18... Kf8 {[%emt 0:01:35] Black is weak on the light squares} 19. Qg4 {[%emt 0:03:02][%cal Oh1h7] [#] Black must now prevent Rh7!} d6 {[%emt 0:02:55]} 20. Nxc8 {[%emt 0:00:36]} Rxc8 {[%emt 0:00:48]} 21. g3 {[%emt 0:00:52]} fxg3 {[%emt 0:05:02]} (21... Nb8 {was necessary.} 22. Rh7 (22. gxf4 Nd7 $18) 22... Rf7) 22. fxg3 {[%emt 0:01:25] aiming for Bg5.} Re8 {[%emt 0:04:54]} 23. Ke2 {[%emt 0:02:34]} Qf7 {[%emt 0:01:04]} 24. Rhf1 {[%emt 0:01:56] [#] And now Bg5 would win.} b6 {[%emt 0:00:56]} 25. Bg5 {[%emt 0:00:54]} Qg6 {[%emt 0:00:38]} 26. Rxf6+ {[%emt 0:00:16]} Bxf6 {[%emt 0:00:15]} 27. Rf1 {[%emt 0:00:09] Black did not feel at home in the position after the opening.   Weighted Error Value: White=0.32/Black=0.91.  Mistake:       	---       	Black=4      Inaccurate:     	---       	Black=1      OK:         	White=8     	---        Best:        	White=1     	Black=1      Strong:       	White=1     	---} 1-0

[Event "2nd Cambridge Open 2024"]
[Site "Cambridge"]
[Date "2024.02.21"]
[Round "4.31"]
[White "Reynolds, D Ian W"]
[Black "Mihalik, Agoston"]
[Result "0-1"]
[ECO "B22"]
[WhiteElo "1960"]
[BlackElo "2146"]
[Annotator "RC"]
[PlyCount "56"]
[EventDate "2024.02.18"]
[EventType "swiss"]
[EventCountry "ENG"]
[SourceTitle "playchess.com"]
[Source "ChessBase"]
[SourceQuality "1"]
[TimeControl "5400+30"]

1. e4 {[%emt 0:00:01]} c5 {[%emt 0:00:07]} 2. c3 {[%emt 0:00:05]} Nf6 {[%emt 0:01:09]} 3. e5 {[%emt 0:00:09]} Nd5 {[%emt 0:00:03]} 4. Nf3 {[%emt 0:00:07]} Nc6 {[%emt 0:00:03]} 5. Bc4 {[%emt 0:00:16]} Nb6 {[%emt 0:00:46]} 6. Bb3 {[%emt 0:00:20]} d5 {[%emt 0:03:42]} 7. exd6 {[%emt 0:02:36]} Qxd6 {[%emt 0:00:16]} 8. O-O {[%emt 0:01:30]} c4 {[%emt 0:09:07]} 9. Bc2 {[%emt 0:00:46]} Bg4 {[%emt 0:01:22]} 10. d4 {[%emt 0:07:11]} cxd3 {[%emt 0:01:14]} 11. Qxd3 {[%emt 0:03:24]} Qxd3 {[%emt 0:03:27]} 12. Bxd3 {[%emt 0:00:04]} Bxf3 {[%emt 0:01:01]} 13. gxf3 {[%emt 0:00:03]} e6 {[%emt 0:03:19]} 14. Be3 {[%emt 0:06:49]} Nd5 {[%emt 0:02:58]} 15. Bb5 {[%emt 0:02:18]} Nxe3 {[%emt 0:19:29]} 16. fxe3 {[%emt 0:03:28]} O-O-O {[%emt 0:01:46]} 17. b4 {[%emt 0:07:06]} Be7 {[%emt 0:07:36]} 18. a3 {[%emt 0:08:48]} Bf6 {[%emt 0:04:44]} 19. Ra2 {[%emt 0:01:09]} Ne7 {[%emt 0:03:45]} 20. e4 {[%emt 0:01:14]} Kb8 {[%emt 0:00:39]} 21. Rc2 {[%emt 0:03:33]} a6 {[%emt 0:08:45]} 22. Be2 {[%emt 0:00:44]} Ng6 {[%emt 0:00:43]} 23. f4 {[%emt 0:04:14]} Rd7 {[%emt 0:00:42]} 24. e5 {[%emt 0:00:58]} Bd8 {[%emt 0:00:14]} 25. Rf3 {[%emt 0:08:00]} Bb6+ {[%emt 0:00:17]} 26. Kf1 {[%emt 0:00:18]} Rhd8 {[%emt 0:01:20]} 27. Ke1 {[%emt 0:01:47]} Bg1 {[%emt 0:02:00]} 28. Rd2 {[%emt 0:11:44]} Bxh2 {[%emt 0:02:04]} 0-1

[Event "2nd Cambridge Open 2024"]
[Site "Cambridge"]
[Date "2024.02.21"]
[Round "4.32"]
[White "Cole, James"]
[Black "Brett, Andrew R"]
[Result "0-1"]
[ECO "C77"]
[WhiteElo "1940"]
[BlackElo "2072"]
[Annotator "NA RC"]
[PlyCount "92"]
[EventDate "2024.02.18"]
[EventType "swiss"]
[EventCountry "ENG"]
[SourceTitle "playchess.com"]
[Source "ChessBase"]
[SourceQuality "1"]
[TimeControl "5400+30"]

1. e4 {[%emt 0:00:03]} e5 {[%emt 0:00:06]} 2. Nf3 {[%emt 0:00:02]} Nc6 {[%emt 0:00:13]} 3. Bb5 {[%emt 0:00:03]} a6 {[%emt 0:00:10]} 4. Ba4 {[%emt 0:00:03]} Nf6 {[%emt 0:00:05]} 5. Qe2 {[%emt 0:00:04]} b5 {[%emt 0:00:21]} 6. Bb3 {[%emt 0:00:04]} Bc5 {[%emt 0:00:13]} 7. d3 {[%emt 0:00:11]} d6 {[%emt 0:00:20]} 8. c3 {[%emt 0:00:07]} h6 {[%emt 0:00:33]} 9. Be3 {[%emt 0:01:13]} Bxe3 {[%emt 0:00:25]} 10. fxe3 {[%emt 0:00:06]} O-O {[%emt 0:00:38]} 11. Nbd2 {[%emt 0:01:48]} Be6 {[%emt 0:00:32]} 12. O-O {[%emt 0:02:12]} d5 {[%emt 0:00:58]} 13. exd5 {[%emt 0:02:35]} Bxd5 {[%emt 0:02:17]} 14. e4 {[%emt 0:08:57]} Be6 {[%emt 0:04:31]} 15. Bc2 {[%emt 0:06:34]} Nh5 {[%emt 0:02:45]} 16. Qe3 {[%emt 0:06:45]} Qe7 {[%emt 0:18:52]} 17. d4 {[%emt 0:09:47]} Bd7 {[%emt 0:07:44]} 18. a3 $16 {[%emt 0:07:59]} Rae8 {[%emt 0:05:51]} 19. d5 {[%emt 0:05:32]} Nd8 {[%emt 0:00:35]} 20. a4 {[%emt 0:00:51]} c6 {[%emt 0:04:43]} 21. axb5 {[%emt 0:05:14]} axb5 {[%emt 0:01:41]} 22. Ra7 {[%emt 0:02:36]} Nf6 {[%emt 0:16:01]} 23. c4 {[%emt 0:14:37]} bxc4 {[%emt 0:04:34]} 24. d6 {[%emt 0:08:21]} Qxd6 {[%emt 0:04:45]} 25. Nxc4 {[%emt 0:00:08]} Qb8 {[%emt 0:02:12]} 26. Qb6 {[%emt 0:02:41]} Qxb6+ {[%emt 0:02:10]} 27. Nxb6 {[%emt 0:00:06]} Bg4 {[%emt 0:00:52]} 28. Nc4 {[%emt 0:03:51]} Bxf3 {[%emt 0:01:58]} 29. gxf3 {[%emt 0:01:00]} Ne6 {[%emt 0:01:41]} 30. Ra5 {[%emt 0:02:53]} Nd4 {[%emt 0:03:28]} 31. Ba4 {[%emt 0:01:24]} Nd7 {[%emt 0:01:48]} 32. Kf2 {[%emt 0:02:59]} f5 {[%emt 0:01:23]} 33. Nd6 {[%emt 0:01:50]} Ra8 {[%emt 0:01:46]} 34. Rxa8 {[%emt 0:00:04]} Rxa8 {[%emt 0:00:10]} 35. b3 {[%emt 0:00:37]} fxe4 {[%emt 0:06:23]} 36. Nxe4 {[%emt 0:00:03]} Nb6 {[%emt 0:01:07]} 37. Nc3 {[%emt 0:00:50]} Rf8 {[%emt 0:01:26]} 38. Ke3 {[%emt 0:00:23]} Nd5+ {[%emt 0:00:31]} 39. Nxd5 {[%emt 0:00:06]} cxd5 {[%emt 0:00:04]} 40. Rf2 {[%emt 0:00:41]} Rc8 {[%emt 0:00:52]} 41. Rd2 {[%emt 0:00:10]} Rc3+ {[%emt 0:00:25]} 42. Rd3 {[%emt 0:00:14]} Rc2 {[%emt 0:00:49]} 43. Rd2 {[%emt 0:00:30]} Rxd2 {[%emt 0:00:55]} 44. Kxd2 {[%emt 0:00:04]} Nxf3+ {[%emt 0:00:09]} 45. Ke3 {[%emt 0:00:04]} Nxh2 {[%emt 0:00:18]} 46. Bc6 {[%emt 0:00:16]} Ng4+ {[%emt 0:00:15]} 0-1

[Event "2nd Cambridge Open 2024"]
[Site "Cambridge"]
[Date "2024.02.21"]
[Round "4.33"]
[White "Shafi, Declan"]
[Black "Keohane, Ben"]
[Result "1-0"]
[ECO "A80"]
[WhiteElo "2219"]
[BlackElo "1926"]
[Annotator "ChessBase"]
[PlyCount "109"]
[EventDate "2024.02.18"]
[EventType "swiss"]
[EventCountry "ENG"]
[SourceTitle "playchess.com"]
[Source "ChessBase"]
[SourceQuality "1"]
[TimeControl "5400+30"]

1. d4 {[%emt 0:00:02]} f5 {[%emt 0:52:02]} 2. Bg5 {[%emt 0:00:19]} g6 {[%emt 0:00:14]} 3. e3 {[%emt 0:01:05]} Bg7 {[%emt 0:00:19]} 4. h4 {[%emt 0:01:21]} Nh6 {[%emt 0:02:56]} 5. Nc3 {[%emt 0:03:01]} d5 {[%emt 0:00:04]} 6. Qf3 {[%emt 0:02:34]} c6 {[%emt 0:02:31]} 7. Qg3 {[%emt 0:01:39]} Nd7 {[%emt 0:05:04]} 8. h5 {[%emt 0:03:53]} Nf8 {[%emt 0:00:50]} 9. Nf3 {[%emt 0:01:39]} Qd6 {[%emt 0:08:25]} 10. Bf4 {[%emt 0:02:12]} Qb4 {[%emt 0:00:22]} 11. O-O-O {[%emt 0:01:29]} Nf7 {[%emt 0:05:11]} 12. a3 {[%emt 0:04:37]} Qa5 {[%emt 0:00:02]} 13. Bc7 {[%emt 0:00:47]} b6 {[%emt 0:00:01]} 14. Nd2 {[%emt 0:00:30]} f4 {[%emt 0:02:15]} 15. Bxf4 {[%emt 0:01:51]} b5 {[%emt 0:00:31]} 16. Nb3 {[%emt 0:03:00]} Qd8 {[%emt 0:00:02]} 17. Nc5 {[%emt 0:00:40]} Nd6 {[%emt 0:02:04]} 18. Bd3 {[%emt 0:01:51]} Bf5 {[%emt 0:02:40]} 19. Nb7 {[%emt 0:07:49]} Nxb7 {[%emt 0:00:21]} 20. Bxf5 {[%emt 0:00:07]} Nd6 {[%emt 0:01:22]} 21. Bd3 {[%emt 0:01:05]} g5 {[%emt 0:03:00]} 22. Bxg5 {[%emt 0:02:24]} h6 {[%emt 0:01:55]} 23. Bf4 {[%emt 0:02:28]} Bf6 {[%emt 0:00:41]} 24. Be5 {[%emt 0:04:55]} Qd7 {[%emt 0:01:14]} 25. Bg6+ {[%emt 0:03:20]} Kd8 {[%emt 0:00:01]} 26. Bxf6 {[%emt 0:01:01]} exf6 {[%emt 0:00:01]} 27. Qf4 {[%emt 0:00:31]} Ne6 {[%emt 0:00:45]} 28. Qxf6+ {[%emt 0:00:52]} Kc7 {[%emt 0:00:01]} 29. Bf5 {[%emt 0:01:26]} Nxf5 {[%emt 0:00:38]} 30. Qxf5 {[%emt 0:00:10]} Raf8 {[%emt 0:00:03]} 31. Qe5+ {[%emt 0:00:38]} Qd6 {[%emt 0:01:31]} 32. Qxd6+ {[%emt 0:00:51]} Kxd6 {[%emt 0:00:02]} 33. Rdf1 {[%emt 0:00:41]} Rhg8 {[%emt 0:00:08]} 34. Rhg1 {[%emt 0:01:08]} Rg4 {[%emt 0:01:15]} 35. f3 {[%emt 0:00:53]} Rg5 {[%emt 0:00:49]} 36. g4 {[%emt 0:00:16]} a5 {[%emt 0:00:36]} 37. Ne2 {[%emt 0:00:23]} b4 {[%emt 0:00:26]} 38. axb4 {[%emt 0:00:17]} axb4 {[%emt 0:00:01]} 39. Kd2 {[%emt 0:00:34]} Rgg8 {[%emt 0:01:43]} 40. Ng3 {[%emt 0:00:23]} Ng5 {[%emt 0:00:10]} 41. Ke2 {[%emt 0:01:06]} Kc7 {[%emt 0:00:50]} 42. Nf5 {[%emt 0:00:17]} Rf6 {[%emt 0:00:43]} 43. Ra1 {[%emt 0:00:21]} Kb6 {[%emt 0:00:36]} 44. Ra4 {[%emt 0:00:14]} Nxf3 {[%emt 0:00:48]} 45. Kxf3 {[%emt 0:01:13]} Rxf5+ {[%emt 0:00:08]} 46. gxf5 {[%emt 0:00:07]} Rxg1 {[%emt 0:00:05]} 47. Rxb4+ {[%emt 0:00:12]} Kc7 {[%emt 0:00:02]} 48. c4 {[%emt 0:01:54]} dxc4 {[%emt 0:00:41]} 49. Rxc4 {[%emt 0:00:20]} Rg5 {[%emt 0:00:01]} 50. e4 {[%emt 0:00:17]} Rxh5 {[%emt 0:00:02]} 51. d5 {[%emt 0:00:15]} Rh3+ {[%emt 0:00:06]} 52. Kg4 {[%emt 0:00:12]} Rb3 {[%emt 0:00:11]} 53. Rxc6+ {[%emt 0:00:09]} Kd7 {[%emt 0:00:10]} 54. Rxh6 {[%emt 0:00:10]} Rxb2 {[%emt 0:00:13]} 55. Kf4 {[%emt 0:00:09]} 1-0

[Event "2nd Cambridge Open 2024"]
[Site "Cambridge"]
[Date "2024.02.21"]
[Round "4.34"]
[White "Nawalaniec, Adam"]
[Black "Pert, Max"]
[Result "1-0"]
[ECO "B06"]
[WhiteElo "1876"]
[BlackElo "1950"]
[Annotator "NA RC"]
[PlyCount "79"]
[EventDate "2024.02.18"]
[EventType "swiss"]
[EventCountry "ENG"]
[SourceTitle "playchess.com"]
[Source "ChessBase"]
[SourceQuality "1"]
[TimeControl "5400+30"]

1. e4 {[%emt 0:00:02]} g6 {[%emt 0:00:10]} 2. d4 {[%emt 0:00:24]} Bg7 {[%emt 0:00:20]} 3. f4 {[%emt 0:02:04]} c6 {[%emt 0:00:58]} 4. Nf3 {[%emt 0:05:13]} d5 {[%emt 0:00:41]} 5. e5 {[%emt 0:00:16]} Nh6 {[%emt 0:01:48]} 6. h3 {[%emt 0:04:08]} Nf5 {[%emt 0:06:36]} 7. g4 {[%emt 0:05:57]} Ng3 {[%emt 0:02:10]} 8. Rg1 {[%emt 0:00:24]} Nxf1 {[%emt 0:02:34]} 9. f5 {[%emt 0:08:18]} O-O {[%emt 0:03:35]} 10. Kxf1 {[%emt 0:07:45]} gxf5 {[%emt 0:06:31]} 11. g5 {[%emt 0:02:58]} Re8 {[%emt 0:13:07]} 12. h4 {[%emt 0:09:09]} Nd7 {[%emt 0:04:37]} 13. h5 {[%emt 0:06:57]} Nf8 {[%emt 0:02:00]} 14. Nh4 {[%emt 0:04:24]} e6 {[%emt 0:04:27]} 15. Nd2 {[%emt 0:02:18]} c5 {[%emt 0:02:14]} 16. c3 {[%emt 0:00:36]} cxd4 {[%emt 0:03:11]} 17. cxd4 {[%emt 0:00:02]} Bd7 {[%emt 0:00:12]} 18. Ndf3 {[%emt 0:02:18]} Qa5 {[%emt 0:03:29]} 19. g6 {[%emt 0:11:34]} fxg6 {[%emt 0:02:55]} 20. hxg6 {[%emt 0:00:48]} hxg6 {[%emt 0:05:31]} 21. Nxg6 {[%emt 0:01:08]} Nxg6 {[%emt 0:03:55]} 22. Rxg6 {[%emt 0:00:02]} Kf7 {[%emt 0:00:11]} 23. Rxg7+ {[%emt 0:09:38]} Kxg7 {[%emt 0:00:13]} 24. Bd2 {[%emt 0:00:38]} Qb5+ {[%emt 0:00:51]} 25. Kf2 {[%emt 0:00:09]} Rh8 {[%emt 0:08:15]} 26. Qg1+ {[%emt 0:03:13]} Kf7 {[%emt 0:00:13]} 27. Qg5 {[%emt 0:02:10]} Raf8 {[%emt 0:10:04]} 28. Nh4 {[%emt 0:09:08]} Rxh4 {[%emt 0:03:24]} 29. Qxh4 {[%emt 0:00:02]} Qxb2 {[%emt 0:00:09]} 30. Rd1 {[%emt 0:01:33]} Ke8 {[%emt 0:02:54]} 31. Ke1 {[%emt 0:01:01]} Bc6 {[%emt 0:03:43]} 32. Qh6 {[%emt 0:00:14]} Bd7 {[%emt 0:01:26]} 33. Qg6+ {[%emt 0:00:35]} Kd8 {[%emt 0:00:06]} 34. Rc1 {[%emt 0:00:01]} Bc6 {[%emt 0:01:14]} 35. Bg5+ {[%emt 0:00:05]} Kc7 {[%emt 0:00:29]} 36. Qg7+ {[%emt 0:00:07]} Kb6 {[%emt 0:00:06]} 37. Qxf8 {[%emt 0:00:08]} Qxd4 {[%emt 0:00:16]} 38. Bd8+ {[%emt 0:01:43]} Ka6 {[%emt 0:00:10]} 39. Qa3+ {[%emt 0:00:10]} Ba4 {[%emt 0:00:05]} 40. Qd6+ {[%emt 0:00:07]} 1-0

[Event "2nd Cambridge Open 2024"]
[Site "Cambridge"]
[Date "2024.02.21"]
[Round "4.35"]
[White "Skettos, Nicolas"]
[Black "Ward, Ieuan C"]
[Result "1/2-1/2"]
[ECO "B90"]
[WhiteElo "1880"]
[BlackElo "2028"]
[Annotator "NA"]
[PlyCount "230"]
[EventDate "2024.02.18"]
[EventType "swiss"]
[EventCountry "ENG"]
[SourceTitle "playchess.com"]
[Source "ChessBase"]
[SourceQuality "1"]
[TimeControl "5400+30"]

1. e4 {[%emt 0:00:02]} c5 {[%emt 0:00:10]} 2. Nf3 {[%emt 0:00:36]} d6 {[%emt 0:00:04]} 3. d4 {[%emt 0:00:06]} cxd4 {[%emt 0:00:05]} 4. Nxd4 {[%emt 0:00:03]} Nf6 {[%emt 0:00:08]} 5. Nc3 {[%emt 0:00:05]} a6 {[%emt 0:00:03]} 6. Be3 {[%emt 0:00:21]} e5 {[%emt 0:00:06]} 7. Nb3 {[%emt 0:00:03]} Be6 {[%emt 0:00:05]} 8. f4 {[%emt 0:00:13]} exf4 {[%emt 0:02:59]} 9. Bxf4 {[%emt 0:00:02]} Nc6 {[%emt 0:02:39]} 10. Qe2 {[%emt 0:00:31]} Be7 {[%emt 0:06:22]} 11. h3 {[%emt 0:00:04]} O-O {[%emt 0:07:47]} 12. O-O-O {[%emt 0:00:05]} Bxb3 {[%emt 0:07:46]} 13. cxb3 {[%emt 0:07:26]} Qa5 {[%emt 0:02:11]} 14. Kb1 {[%emt 0:02:35]} Rfe8 {[%emt 0:03:22]} 15. g4 {[%emt 0:05:02]} Rad8 $18 {[%emt 0:31:04]} (15... Bf8 $16 {might work better.}) 16. g5 {[%emt 0:13:44]} Nd7 {[%emt 0:00:06]} 17. h4 {[%emt 0:02:11]} Nc5 {[%emt 0:01:33]} 18. Qg2 {[%emt 0:08:42]} Ne6 {[%emt 0:07:38]} 19. Be3 {[%emt 0:10:31]} Bf8 {[%emt 0:00:47]} 20. a3 {[%emt 0:09:13]} Ne7 {[%emt 0:25:35]} 21. h5 {[%emt 0:04:28]} Rc8 {[%emt 0:00:00]} 22. Bc4 {[%emt 0:05:41]} b5 {[%emt 0:00:00]} 23. Bxe6 {[%emt 0:04:52]} fxe6 {[%emt 0:00:00]} 24. b4 {[%emt 0:00:59]} Qc7 {[%emt 0:00:00]} 25. g6 {[%emt 0:01:05]} h6 {[%emt 0:00:00]} 26. Rhf1 {[%emt 0:03:48]} Nc6 {[%emt 0:00:00]} 27. Qh3 {[%emt 0:04:01]} Ne5 {[%emt 0:00:00]} 28. Bd4 {[%emt 0:01:53]} Nc4 {[%emt 0:00:00]} 29. Rf7 {[%emt 0:01:05]} Re7 {[%emt 0:00:00]} 30. Rxe7 {[%emt 0:00:37]} Qxe7 {[%emt 0:00:00]} 31. Ka2 {[%emt 0:03:29]} Rb8 {[%emt 0:00:00]} 32. Rf1 {[%emt 0:01:12]} Qe8 {[%emt 0:03:28]} 33. Rf7 {[%emt 0:01:57]} a5 {[%emt 0:00:32]} 34. Ba7 {[%emt 0:04:46]} axb4 {[%emt 0:01:23]} 35. axb4 {[%emt 0:01:51]} Ra8 {[%emt 0:00:30]} 36. Kb1 {[%emt 0:00:57]} Ne5 {[%emt 0:00:58]} 37. Rb7 {[%emt 0:00:45]} Qc8 {[%emt 0:00:32]} 38. Rb8 {[%emt 0:02:47]} Rxb8 {[%emt 0:00:05]} 39. Bxb8 {[%emt 0:00:01]} Qxb8 {[%emt 0:00:09]} 40. Qxe6+ {[%emt 0:00:01]} Kh8 {[%emt 0:00:08]} 41. Qd5 {[%emt 0:00:08]} Qc7 {[%emt 0:02:03]} 42. Qxb5 {[%emt 0:01:23]} Qc4 {[%emt 0:00:30]} 43. Qe8 {[%emt 0:00:28]} Kg8 {[%emt 0:00:06]} 44. b5 {[%emt 0:00:19]} Qb3 {[%emt 0:00:49]} 45. Ka1 {[%emt 0:02:06]} Nd3 {[%emt 0:00:25]} 46. Qf7+ {[%emt 0:00:19]} Qxf7 {[%emt 0:00:01]} 47. gxf7+ {[%emt 0:00:05]} Kxf7 {[%emt 0:00:02]} 48. b6 {[%emt 0:00:42]} Nc5 {[%emt 0:00:11]} 49. b4 {[%emt 0:00:13]} Nb7 {[%emt 0:00:13]} 50. Ka2 {[%emt 0:00:05]} g5 {[%emt 0:01:28]} 51. hxg6+ {[%emt 0:00:02]} Kxg6 {[%emt 0:00:02]} 52. Kb3 {[%emt 0:00:23]} Kf7 {[%emt 0:00:27]} 53. Kc4 {[%emt 0:00:17]} Ke6 {[%emt 0:00:02]} 54. Kb5 {[%emt 0:01:11]} Kd7 {[%emt 0:00:01]} 55. Nd5 {[%emt 0:00:16]} Kc8 {[%emt 0:01:21]} 56. Nf4 {[%emt 0:01:43]} Nd8 {[%emt 0:00:01]} 57. Kc4 {[%emt 0:00:53]} Kb7 {[%emt 0:00:10]} 58. Ng6 {[%emt 0:00:07]} h5 {[%emt 0:00:56]} 59. Kd4 {[%emt 0:00:37]} Bg7+ {[%emt 0:00:25]} 60. Kd5 {[%emt 0:00:00]} Nf7 {[%emt 0:00:50]} 61. Ke6 {[%emt 0:00:08]} Ne5 {[%emt 0:01:51]} 62. Nf4 {[%emt 0:00:33]} Nc4 {[%emt 0:00:33]} 63. Kd5 {[%emt 0:01:10]} Be5 {[%emt 0:00:06]} 64. Ng6 {[%emt 0:00:56]} Nxb6+ {[%emt 0:00:12]} 65. Ke6 {[%emt 0:00:11]} Bg3 {[%emt 0:00:26]} 66. Kf5 {[%emt 0:00:37]} h4 {[%emt 0:00:52]} 67. Kg4 {[%emt 0:00:01]} Kc6 {[%emt 0:00:15]} 68. e5 {[%emt 0:00:38]} dxe5 {[%emt 0:00:28]} 69. Nxe5+ {[%emt 0:00:01]} Bxe5 {[%emt 0:00:02]} 70. Kxh4 {[%emt 0:00:38]} Kd5 {[%emt 0:00:27]} 71. Kg4 {[%emt 0:00:01]} Ke4 {[%emt 0:00:09]} 72. b5 {[%emt 0:00:15]} Nd5 {[%emt 0:00:26]} 73. b6 {[%emt 0:00:33]} Nxb6 {[%emt 0:00:04]} 74. Kh3 {[%emt 0:00:07]} Kf3 {[%emt 0:00:24]} 75. Kh4 {[%emt 0:00:01]} Nd5 {[%emt 0:00:17]} 76. Kg5 {[%emt 0:00:08]} Ne7 {[%emt 0:00:11]} 77. Kh4 {[%emt 0:00:20]} Bf4 {[%emt 0:02:07]} 78. Kh3 {[%emt 0:00:10]} Nc6 {[%emt 0:00:31]} 79. Kh4 {[%emt 0:00:03]} Ne5 {[%emt 0:00:21]} 80. Kh3 {[%emt 0:00:08]} Nd3 {[%emt 0:01:46]} 81. Kh4 {[%emt 0:00:04]} Nf2 {[%emt 0:00:25]} 82. Kh5 {[%emt 0:00:01]} Ke4 {[%emt 0:00:16]} 83. Kg6 {[%emt 0:00:35]} Ke5 {[%emt 0:00:13]} 84. Kf7 {[%emt 0:00:09]} Ne4 {[%emt 0:00:10]} 85. Ke7 {[%emt 0:00:11]} Nc5 {[%emt 0:00:21]} 86. Kd8 {[%emt 0:00:10]} Ke6 {[%emt 0:01:20]} 87. Kc8 {[%emt 0:00:13]} Bd6 {[%emt 0:00:47]} 88. Kd8 {[%emt 0:00:02]} Kd5 {[%emt 0:00:28]} 89. Kc8 {[%emt 0:01:17]} Kc6 {[%emt 0:00:22]} 90. Kd8 {[%emt 0:00:02]} Nd3 {[%emt 0:00:13]} 91. Kc8 {[%emt 0:00:14]} Nc5 {[%emt 0:00:56]} 92. Kd8 {[%emt 0:00:01]} Bf4 {[%emt 0:00:24]} 93. Ke7 {[%emt 0:00:49]} Bg5+ {[%emt 0:00:16]} 94. Kf7 {[%emt 0:00:03]} Kd5 {[%emt 0:00:45]} 95. Kg6 {[%emt 0:00:01]} Be3 {[%emt 0:00:09]} 96. Kf5 {[%emt 0:00:12]} Ne6 {[%emt 0:00:02]} 97. Kg4 {[%emt 0:00:12]} Ke4 {[%emt 0:00:02]} 98. Kg3 {[%emt 0:00:12]} Nd4 {[%emt 0:00:24]} 99. Kg2 {[%emt 0:00:08]} Kf4 {[%emt 0:00:06]} 100. Kh2 {[%emt 0:01:16]} Kf3 {[%emt 0:00:08]} 101. Kh1 {[%emt 0:02:03]} Bf4 {[%emt 0:00:53]} 102. Kg1 {[%emt 0:00:01]} Bg3 {[%emt 0:02:30]} 103. Kh1 {[%emt 0:00:10]} Nf5 {[%emt 0:00:04]} 104. Kg1 {[%emt 0:00:05]} Bf2+ {[%emt 0:00:08]} 105. Kh2 {[%emt 0:00:33]} Bd4 {[%emt 0:00:46]} 106. Kh1 {[%emt 0:00:38]} Kf2 {[%emt 0:00:19]} 107. Kh2 {[%emt 0:00:01]} Be5+ {[%emt 0:00:06]} 108. Kh1 {[%emt 0:01:13]} Kg3 {[%emt 0:01:20]} 109. Kg1 {[%emt 0:00:01]} Ne3 {[%emt 0:00:01]} 110. Kh1 {[%emt 0:00:09]} Ng4 {[%emt 0:00:06]} 111. Kg1 {[%emt 0:00:04]} Bd4+ {[%emt 0:00:04]} 112. Kf1 {[%emt 0:02:26]} Kf3 {[%emt 0:00:11]} 113. Ke1 {[%emt 0:00:02]} Kg2 {[%emt 0:00:33]} 114. Ke2 {[%emt 0:00:08]} Ne5 {[%emt 0:00:03]} 115. Ke1 {[%emt 0:01:04]} Kh1 {[%emt 0:01:29]} 1/2-1/2